fUST/lending_fUST_20250306
["ID","MTS","AMOUNT","RATE_DAILY","PERIOD"]
[355468630,1741191032424,-416.66666667,0.00028,3]
[355468631,1741191032434,-416.66666667,0.00028984,2]
[355468632,1741191032444,-195.122412,0.00033591,120]
[355468633,1741191032453,-166.0,0.00035157,120]
[355468634,1741191032464,-500.0,0.0003589,2]
[355468635,1741191032473,-171.837568,0.00035991,3]
[355468636,1741191032483,-178.66338893,0.000362,98]
[355468637,1741191032494,-458.14126891,0.000379,8]
[355468638,1741191032504,-299.74,0.0003799,3]
[355468639,1741191032514,-899.27,0.0003799,3]
[355468640,1741191032523,-400.0,0.00037998,2]
[355468641,1741191032533,-500.0,0.00037999,2]
[355468642,1741191032543,-500.0,0.00037999,2]
[355468643,1741191032553,-500.0,0.00037999,2]
[355468644,1741191032563,-500.0,0.00037999,2]
[355468645,1741191032573,-500.0,0.00037999,2]
[355468646,1741191032583,-500.0,0.00037999,2]
[355468647,1741191032593,-500.0,0.00037999,2]
[355468648,1741191032603,-500.0,0.00037999,2]
[355468649,1741191032613,-500.0,0.00037999,2]
[355468650,1741191032624,-500.0,0.00037999,2]
[355468651,1741191032634,-500.0,0.00037999,2]
[355468653,1741191032644,-500.0,0.00037999,2]
[355468655,1741191032655,-500.0,0.00037999,2]
[355468657,1741191032665,-500.0,0.00037999,2]
[355468658,1741191032674,-500.0,0.00037999,2]
[355468659,1741191032684,-500.0,0.00037999,2]
[355468660,1741191032694,-348.14466417,0.00037999,2]
[355468661,1741191032703,-500.0,0.00037999,2]
[355468662,1741191032713,-500.0,0.00037999,2]
[355468663,1741191032723,-500.0,0.00037999,2]
[355468664,1741191032732,-500.0,0.00037999,2]
[355468665,1741191032746,-500.0,0.00037999,2]
[355468666,1741191032755,-500.0,0.00037999,2]
[355468667,1741191032765,-500.0,0.00037999,2]
[355468668,1741191032775,-500.0,0.00037999,2]
[355468669,1741191032784,-500.0,0.00037999,2]
[355468670,1741191032793,-3480.56678419,0.00038,2]
[355468674,1741191038453,-4573.55797797,0.00038,2]
[355468675,1741191038465,-1022.59737165,0.00038,2]
[355468676,1741191038475,-182349.35443433,0.00038,120]
[355468677,1741191038484,-416.66666667,0.00038,120]
[355468678,1741191038496,-190.19523772,0.00038078,2]
[355468679,1741191038505,-190.69591915,0.00038245,2]
[355468680,1741191038514,-232.98327334,0.00038255,15]
[355468681,1741191038524,-500.0,0.00038255,15]
[355468682,1741191038534,-275.96458452,0.00038255,15]
[355468683,1741191038543,-503.14639919,0.00038255,120]
[355468684,1741191038553,-1067.97,0.00038255,120]
[355468685,1741191038562,-222000.0,0.00038256,2]
[355468686,1741191038572,-500.0,0.00038273,5]
[355468687,1741191038582,-150.0,0.00038355,2]
[355468688,1741191038591,-512.80711007,0.00038355,120]
[355468689,1741191038602,-501.85475979,0.00038356,9]
[355468690,1741191038611,-320.00675719,0.00038356,9]
[355468692,1741191038620,-517.68853372,0.00038356,9]
[355468694,1741191038629,-500.0,0.00038356,9]
[355468695,1741191038639,-500.0,0.00038356,9]
[355468696,1741191038648,-500.0,0.00038356,9]
[355468697,1741191038657,-500.0,0.00038356,120]
[355468698,1741191038667,-500.0,0.00038356,9]
[355468699,1741191038677,-507.49556275,0.00038356,9]
[355468700,1741191038686,-500.0,0.00038356,9]
[355468701,1741191038696,-508.18616048,0.00038356,9]
[355468702,1741191038705,-500.0,0.00038356,9]
[355468703,1741191038715,-500.0,0.00038356,9]
[355468704,1741191038724,-500.0,0.00038356,9]
[355468705,1741191038734,-541.18741591,0.00038356,9]
[355468706,1741191038745,-503.03597987,0.00038356,9]
[355468707,1741191038755,-502.5413463,0.00038356,9]
[355468708,1741191038764,-500.0,0.00038356,9]
[355468709,1741191038774,-500.0,0.00038356,9]
[355468710,1741191038783,-502.07248207,0.00038356,9]
[355468711,1741191038792,-500.0,0.00038356,9]
[355468712,1741191038802,-516.40833981,0.00038356,9]
[355468713,1741191038811,-500.0,0.00038356,9]
[355468714,1741191038820,-500.0,0.00038356,9]
[355468715,1741191038829,-501.5786755,0.00038356,9]
[355468716,1741191038839,-500.0,0.00038356,9]
[355468717,1741191038849,-500.0,0.00038356,9]
[355468718,1741191038859,-500.0,0.00038356,9]
[355468719,1741191038868,-515.30684035,0.00038356,9]
[355468720,1741191038878,-514.43197608,0.00038356,9]
[355468721,1741191038887,-506.29164687,0.00038356,9]
[355468722,1741191038897,-506.40234178,0.00038356,9]
[355468723,1741191038907,-500.0,0.00038356,9]
[355468724,1741191038917,-518.83270244,0.00038356,9]
[355468725,1741191038927,-509.2628223,0.00038356,9]
[355468726,1741191038937,-500.0,0.00038356,9]
[355468727,1741191038946,-500.0,0.00038356,9]
[355468728,1741191038957,-514.19740506,0.00038356,9]
[355468729,1741191038967,-500.0,0.00038356,9]
[355468730,1741191038976,-573.4185782,0.00038356,9]
[355468731,1741191038986,-504.53128391,0.00038356,9]
[355468732,1741191038997,-500.0,0.00038356,9]
[355468733,1741191039006,-503.19159942,0.00038356,9]
[355468734,1741191039015,-508.86460533,0.00038356,9]
[355468735,1741191039024,-503.64426351,0.00038356,9]
[355468736,1741191039033,-515.56245957,0.00038356,9]
[355468737,1741191039043,-508.52579174,0.00038356,9]
[355468738,1741191039053,-507.40596369,0.00038356,9]
[355468739,1741191039063,-514.35102055,0.00038356,9]
[355468740,1741191039072,-500.0,0.00038356,9]
[355468741,1741191039082,-173.86458595,0.00038356,9]
[355468742,1741191039092,-500.74687073,0.00038356,9]
[355468743,1741191039102,-508.31219331,0.00038356,9]
[355468744,1741191039111,-500.0,0.00038356,9]
[355468745,1741191039121,-500.0,0.00038356,9]
[355468746,1741191039130,-500.0,0.00038356,9]
[355468747,1741191039140,-500.0,0.00038356,9]
[355468748,1741191039149,-337.17186342,0.00038356,9]
[355468749,1741191039158,-500.0,0.00038356,9]
[355468750,1741191039167,-500.0,0.00038356,9]
[355468751,1741191039177,-500.0,0.00038356,9]
[355468752,1741191039187,-500.0,0.00038356,9]
[355468753,1741191039199,-500.0,0.00038356,9]
[355468754,1741191039208,-754.23,0.00038356,9]
[355468755,1741191039218,-500.0,0.00038356,9]
[355468756,1741191039227,-502.78399697,0.00038356,9]
[355468757,1741191039238,-500.0,0.00038356,9]
[355468758,1741191039253,-504.34513949,0.00038356,9]
[355468759,1741191039262,-500.68772161,0.00038356,9]
[355468760,1741191039272,-507.38775357,0.00038356,9]
[355468761,1741191039282,-504.2022944,0.00038356,9]
[355468762,1741191039291,-503.65966449,0.00038356,9]
[355468763,1741191039301,-503.27837711,0.00038356,9]
[355468764,1741191039310,-560.55043522,0.00038356,9]
[355468765,1741191039320,-500.0,0.00038356,9]
[355468766,1741191039329,-500.0,0.00038356,9]
[355468767,1741191039339,-502.90291768,0.00038356,9]
[355468768,1741191039348,-506.14948068,0.00038356,9]
[355468769,1741191039358,-500.0,0.00038356,9]
[355468770,1741191039368,-500.0,0.00038356,9]
[355468771,1741191039377,-506.01083682,0.00038356,9]
[355468772,1741191039387,-608.5,0.00038356,9]
[355468773,1741191039396,-500.0,0.00038356,9]
[355468774,1741191039405,-175.00000005,0.00038356,9]
[355468775,1741191039415,-500.0,0.00038356,9]
[355468776,1741191039424,-500.0,0.00038356,9]
[355468777,1741191039433,-508.52594576,0.00038356,9]
[355468778,1741191039442,-616.01564794,0.00038356,9]
[355468779,1741191039451,-572.46336485,0.00038356,9]
[355468780,1741191039635,-514.26277014,0.00038356,9]
[355468781,1741191039645,-521.27589852,0.00038356,9]
[355468782,1741191039655,-500.0,0.00038356,9]
[355468783,1741191039664,-500.0,0.00038356,9]
[355468784,1741191039673,-500.0,0.00038356,9]
[355468785,1741191039683,-585.53,0.00038356,9]
[355468786,1741191039693,-500.0,0.00038356,9]
[355468787,1741191039703,-503.37965529,0.00038356,9]
[355468788,1741191039712,-500.0,0.00038356,9]
[355468789,1741191039722,-501.74681667,0.00038356,9]
[355468790,1741191039731,-500.0,0.00038356,9]
[355468791,1741191039743,-500.0,0.00038356,9]
[355468792,1741191039753,-500.0,0.00038356,9]
[355468793,1741191039762,-500.0,0.00038356,9]
[355468794,1741191039773,-511.1306196,0.00038356,9]
[355468795,1741191039783,-370.05705057,0.00038356,9]
[355468796,1741191039794,-500.0,0.00038356,9]
[355468797,1741191039804,-504.2570239,0.00038356,9]
[355468798,1741191039813,-500.0,0.00038356,9]
[355468799,1741191039823,-500.0,0.00038356,9]
[355468800,1741191039832,-500.0,0.00038356,9]
[355468801,1741191039842,-503.32198273,0.00038356,9]
[355468803,1741191039851,-500.0,0.00038356,9]
[355468805,1741191039861,-572.28,0.00038356,9]
[355468807,1741191039871,-500.0,0.00038356,9]
[355468809,1741191039881,-383.57457039,0.00038356,9]
[355468810,1741191039890,-502.06598985,0.00038356,9]
[355468811,1741191039900,-500.0,0.00038356,9]
[355468812,1741191039909,-500.0,0.00038356,9]
[355468813,1741191039919,-500.0,0.00038356,9]
[355468815,1741191039929,-500.0,0.00038356,9]
[355468817,1741191039939,-500.73215537,0.00038356,9]
[355468819,1741191039949,-500.0,0.00038356,9]
[355468821,1741191039958,-500.0,0.00038356,9]
[355468823,1741191039967,-500.0,0.00038356,9]
[355468825,1741191039977,-507.89753439,0.00038356,9]
[355468827,1741191039987,-500.0,0.00038356,9]
[355468828,1741191040000,-500.0,0.00038356,9]
[355468831,1741191040009,-500.0,0.00038356,9]
[355468832,1741191040019,-500.0,0.00038356,9]
[355468834,1741191040029,-500.0,0.00038356,9]
[355468837,1741191040039,-500.0,0.00038356,9]
[355468839,1741191040048,-500.0,0.00038356,9]
[355468840,1741191040058,-506.76274301,0.00038356,9]
[355468843,1741191040067,-500.0,0.00038356,9]
[355468845,1741191040077,-500.0,0.00038356,9]
[355468847,1741191040087,-500.0,0.00038356,9]
[355468849,1741191040096,-507.36491815,0.00038356,9]
[355468851,1741191040106,-500.0,0.00038356,9]
[355468853,1741191040115,-500.0,0.00038356,9]
[355468855,1741191040124,-522.82,0.00038356,9]
[355468857,1741191040133,-524.88040134,0.00038356,9]
[355468859,1741191040143,-500.0,0.00038356,9]
[355468860,1741191040152,-510.74726545,0.00038356,9]
[355468863,1741191040162,-500.0,0.00038356,9]
[355468865,1741191040171,-509.79231782,0.00038356,9]
[355468867,1741191040180,-573.67497039,0.00038356,9]
[355468869,1741191040192,-500.0,0.00038356,9]
[355468871,1741191040206,-500.0,0.00038356,9]
[355468873,1741191040215,-500.0,0.00038356,9]
[355468875,1741191040226,-500.0,0.00038356,9]
[355468877,1741191040236,-500.0,0.00038356,9]
[355468879,1741191040248,-500.0,0.00038356,9]
[355468881,1741191040257,-667.86,0.00038356,9]
[355468883,1741191040267,-504.15977757,0.00038356,9]
[355468885,1741191040280,-512.95299336,0.00038356,9]
[355468886,1741191040289,-500.0,0.00038356,9]
[355468887,1741191040299,-500.0,0.00038356,9]
[355468888,1741191040309,-500.0,0.00038356,9]
[355468890,1741191040319,-500.0,0.00038356,9]
[355468892,1741191040329,-500.0,0.00038356,9]
[355468893,1741191040339,-504.00408174,0.00038356,9]
[355468894,1741191040348,-500.0,0.00038356,9]
[355468895,1741191040358,-508.55054817,0.00038356,9]
[355468896,1741191040368,-500.0,0.00038356,9]
[355468897,1741191040378,-505.76316782,0.00038356,9]
[355468898,1741191040388,-500.0,0.00038356,9]
[355468900,1741191040398,-502.76999261,0.00038356,9]
[355468902,1741191040407,-500.0,0.00038356,9]
[355468905,1741191040417,-506.96547516,0.00038356,9]
[355468906,1741191040426,-429.36020701,0.00038356,9]
[355468908,1741191040436,-500.0,0.00038356,9]
[355468911,1741191040446,-500.0,0.00038356,9]
[355468912,1741191040455,-500.0,0.00038356,9]
[355468913,1741191040465,-500.0,0.00038356,9]
[355468914,1741191040474,-500.0,0.00038356,9]
[355468916,1741191040484,-500.0,0.00038356,9]
[355468917,1741191040493,-500.0,0.00038356,9]
[355468918,1741191040503,-503.355792,0.00038356,9]
[355468919,1741191040513,-500.0,0.00038356,9]
[355468920,1741191040523,-502.38216867,0.00038356,9]
[355468921,1741191040533,-200.0,0.00038356,7]
[355468922,1741191040543,-500.0,0.00038356,9]
[355468923,1741191040552,-510.75532337,0.00038356,9]
[355468924,1741191040562,-500.19295542,0.00038356,9]
[355468925,1741191040572,-567.52,0.00038356,9]
[355468926,1741191040582,-508.63543285,0.00038356,9]
[355468927,1741191040592,-500.0,0.00038356,9]
[355468929,1741191040602,-500.0,0.00038356,9]
[355468931,1741191040612,-502.29146137,0.00038356,9]
[355468932,1741191040621,-680.57,0.00038356,9]
[355468934,1741191040631,-500.0,0.00038356,9]
[355468936,1741191040641,-500.0,0.00038356,9]
[355468938,1741191040651,-500.0,0.00038356,9]
[355468940,1741191040660,-506.7779188,0.00038356,9]
[355468942,1741191040670,-500.0,0.00038356,9]
[355468944,1741191040680,-500.0,0.00038356,9]
[355468946,1741191040689,-500.0,0.00038356,9]
[355468948,1741191040699,-500.0,0.00038356,9]
[355468950,1741191040708,-500.0,0.00038356,9]
[355468952,1741191040718,-500.0,0.00038356,9]
[355468954,1741191040727,-184.24696019,0.00038356,9]
[355468956,1741191040737,-500.0,0.00038356,9]
[355468958,1741191040748,-500.0,0.00038356,9]
[355468960,1741191040758,-500.0,0.00038356,9]
[355468962,1741191040768,-928.8,0.00038356,9]
[355468964,1741191040778,-500.0,0.00038356,9]
[355468966,1741191040787,-502.14820628,0.00038356,9]
[355468968,1741191040797,-500.0,0.00038356,9]
[355468970,1741191040807,-500.0,0.00038356,9]
[355468972,1741191040817,-500.0,0.00038356,9]
[355468974,1741191040826,-803.39,0.00038356,9]
[355468976,1741191040835,-500.0,0.00038356,9]
[355468978,1741191040845,-500.0,0.00038356,9]
[355468980,1741191040855,-500.0,0.00038356,9]
[355468982,1741191040864,-500.0,0.00038356,9]
[355468984,1741191040874,-866.31,0.00038356,9]
[355468986,1741191040883,-500.0,0.00038356,9]
[355468988,1741191040892,-502.13825375,0.00038356,9]
[355468990,1741191040902,-501.27251953,0.00038356,9]
[355468992,1741191040911,-502.33122365,0.00038356,9]
[355468994,1741191040920,-500.0,0.00038356,9]
[355468996,1741191040930,-501.27881484,0.00038356,9]
[355468998,1741191040939,-500.0,0.00038356,9]
[355469000,1741191040949,-500.0,0.00038356,9]
[355469002,1741191040958,-500.0,0.00038356,9]
[355469004,1741191040968,-1488.14,0.00038356,9]
[355469006,1741191040978,-500.0,0.00038356,9]
[355469008,1741191040988,-500.0,0.00038356,9]
[355469010,1741191040999,-500.0,0.00038356,9]
[355469011,1741191041009,-500.0,0.00038356,9]
[355469012,1741191041019,-500.0,0.00038356,9]
[355469013,1741191041028,-500.0,0.00038356,9]
[355469014,1741191041038,-500.0,0.00038356,9]
[355469015,1741191041047,-500.0,0.00038356,9]
[355469016,1741191041057,-500.0,0.00038356,9]
[355469017,1741191041067,-500.0,0.00038356,9]
[355469018,1741191041076,-502.89753544,0.00038356,9]
[355469019,1741191041086,-500.0,0.00038356,9]
[355469020,1741191041095,-500.0,0.00038356,9]
[355469021,1741191041105,-500.0,0.00038356,9]
[355469022,1741191041114,-500.0,0.00038356,9]
[355469023,1741191041124,-500.0,0.00038356,9]
[355469024,1741191041133,-500.0,0.00038356,9]
[355469025,1741191041142,-500.0,0.00038356,9]
[355469026,1741191041151,-500.0,0.00038356,9]
[355469027,1741191041160,-504.25040602,0.00038356,9]
[355469028,1741191041170,-500.0,0.00038356,9]
[355469029,1741191041179,-500.0,0.00038356,9]
[355469030,1741191041190,-500.0,0.00038356,9]
[355469031,1741191041203,-500.0,0.00038356,9]
[355469032,1741191041212,-500.0,0.00038356,9]
[355469033,1741191041222,-411.36098068,0.00038356,9]
[355469034,1741191041232,-500.0,0.00038356,9]
[355469035,1741191041244,-500.0,0.00038356,9]
[355469036,1741191041255,-500.0,0.00038356,9]
[355469037,1741191041265,-500.0,0.00038356,9]
[355469038,1741191041275,-500.0,0.00038356,9]
[355469039,1741191041285,-185.64741597,0.00038356,9]
[355469040,1741191041295,-500.0,0.00038356,9]
[355469041,1741191041304,-608.58279509,0.00038356,9]
[355469042,1741191041314,-537.41,0.00038356,9]
[355469043,1741191041323,-880.86,0.00038356,9]
[355469044,1741191041333,-500.0,0.00038356,9]
[355469045,1741191041343,-500.0,0.00038356,9]
[355469046,1741191041353,-500.0,0.00038356,9]
[355469047,1741191041362,-500.0,0.00038356,9]
[355469048,1741191041372,-407.71982037,0.00038356,9]
[355469049,1741191041382,-500.0,0.00038356,9]
[355469050,1741191041391,-500.0,0.00038356,9]
[355469051,1741191041401,-500.0,0.00038356,9]
[355469052,1741191041411,-500.0,0.00038356,9]
[355469053,1741191041420,-500.0,0.00038356,9]
[355469054,1741191041430,-655.83,0.00038356,9]
[355469055,1741191041439,-506.2746138,0.00038356,9]
[355469056,1741191041450,-500.0,0.00038356,9]
[355469057,1741191041460,-500.0,0.00038356,9]
[355469058,1741191041469,-500.0,0.00038356,9]
[355469059,1741191041479,-500.0,0.00038356,9]
[355469060,1741191041488,-500.0,0.00038356,9]
[355469061,1741191041501,-1010.4,0.00038356,9]
[355469062,1741191041510,-505.51587521,0.00038356,9]
[355469063,1741191041524,-500.0,0.00038356,9]
[355469064,1741191041534,-500.0,0.00038356,9]
[355469065,1741191041543,-500.0,0.00038356,9]
[355469066,1741191041553,-509.63942525,0.00038356,9]
[355469067,1741191041563,-500.0,0.00038356,9]
[355469068,1741191041573,-500.0,0.00038356,9]
[355469069,1741191041583,-500.0,0.00038356,9]
[355469070,1741191041593,-500.0,0.00038356,9]
[355469071,1741191041603,-545.77,0.00038356,9]
[355469072,1741191041613,-500.0,0.00038356,9]
[355469073,1741191041623,-500.0,0.00038356,9]
[355469074,1741191041633,-500.0,0.00038356,9]
[355469075,1741191041643,-500.0,0.00038356,9]
[355469076,1741191041652,-500.0,0.00038356,9]
[355469077,1741191041663,-503.38513203,0.00038356,9]
[355469078,1741191041672,-500.0,0.00038356,9]
[355469079,1741191041683,-590.28,0.00038356,9]
[355469080,1741191041692,-658.1,0.00038356,9]
[355469081,1741191041702,-500.0,0.00038356,9]
[355469082,1741191041712,-500.0,0.00038356,9]
[355469083,1741191041721,-500.0,0.00038356,9]
[355469084,1741191041731,-500.0,0.00038356,9]
[355469085,1741191041741,-500.0,0.00038356,9]
[355469086,1741191041752,-500.0,0.00038356,9]
[355469087,1741191041762,-500.0,0.00038356,9]
[355469088,1741191041771,-500.0,0.00038356,9]
[355469089,1741191041781,-500.0,0.00038356,9]
[355469090,1741191041791,-500.0,0.00038356,9]
[355469091,1741191041800,-1641.27,0.00038356,9]
[355469092,1741191041810,-1709.41,0.00038356,9]
[355469093,1741191041820,-500.0,0.00038356,9]
[355469094,1741191041829,-500.0,0.00038356,9]
[355469095,1741191041839,-500.0,0.00038356,9]
[355469096,1741191041851,-500.0,0.00038356,9]
[355469097,1741191041861,-500.0,0.00038356,9]
[355469098,1741191041871,-500.0,0.00038356,9]
[355469099,1741191041880,-500.0,0.00038356,9]
[355469100,1741191041890,-506.96601797,0.00038356,5]
[355469101,1741191041899,-1154.26,0.00038356,9]
[355469102,1741191041909,-500.0,0.00038356,9]
[355469103,1741191041919,-500.0,0.00038356,9]
[355469104,1741191041928,-500.0,0.00038356,9]
[355469105,1741191041938,-500.0,0.00038356,9]
[355469106,1741191041947,-500.0,0.00038356,9]
[355469107,1741191041957,-527.1,0.00038356,9]
[355469108,1741191041967,-1321.07,0.00038356,9]
[355469109,1741191041977,-526.74887457,0.00038356,9]
[355469110,1741191041986,-500.0,0.00038356,9]
[355469111,1741191041998,-500.0,0.00038356,9]
[355469112,1741191042007,-500.0,0.00038356,9]
[355469113,1741191042016,-500.0,0.00038356,9]
[355469114,1741191042026,-690.25,0.00038356,9]
[355469115,1741191042036,-561.86,0.00038356,9]
[355469116,1741191042046,-500.0,0.00038356,9]
[355469117,1741191042056,-500.0,0.00038356,9]
[355469118,1741191042066,-500.0,0.00038356,9]
[355469119,1741191042075,-508.83963835,0.00038356,9]
[355469120,1741191042085,-500.0,0.00038356,9]
[355469121,1741191042095,-520.16,0.00038356,9]
[355469122,1741191042105,-1137.54,0.00038356,9]
[355469123,1741191042115,-507.35641694,0.00038356,9]
[355469124,1741191042125,-500.0,0.00038356,9]
[355469125,1741191042135,-500.0,0.00038356,9]
[355469126,1741191042144,-1057.14,0.00038356,9]
[355469127,1741191042154,-518.57718253,0.00038356,9]
[355469128,1741191042164,-500.0,0.00038356,9]
[355469129,1741191042174,-500.0,0.00038356,9]
[355469130,1741191042183,-1276.99,0.00038356,9]
[355469131,1741191042195,-651.52,0.00038356,9]
[355469132,1741191042205,-646.24,0.00038356,9]
[355469133,1741191042215,-500.0,0.00038356,9]
[355469134,1741191042226,-500.0,0.00038356,9]
[355469135,1741191042236,-501.24137491,0.00038356,9]
[355469136,1741191042248,-500.0,0.00038356,9]
[355469137,1741191042258,-500.0,0.00038356,9]
[355469138,1741191042270,-615.65,0.00038356,9]
[355469139,1741191042280,-500.0,0.00038356,9]
[355469140,1741191042290,-500.0,0.00038356,9]
[355469141,1741191042299,-500.0,0.00038356,9]
[355469142,1741191042308,-2600.9,0.00038356,9]
[355469143,1741191042318,-636.69,0.00038356,9]
[355469144,1741191042328,-89809.1,0.00038356,7]
[355469145,1741191042337,-505.7966801,0.00038356,9]
[355469146,1741191042347,-500.0,0.00038356,9]
[355469147,1741191042357,-500.0,0.00038356,9]
[355469148,1741191042366,-500.0,0.00038356,9]
[355469149,1741191042376,-500.0,0.00038356,9]
[355469150,1741191042386,-500.0,0.00038356,9]
[355469151,1741191042395,-1135.07,0.00038356,9]
[355469152,1741191042405,-7431.77,0.00038356,9]
[355469153,1741191042415,-500.0,0.00038356,9]
[355469154,1741191042425,-946.14,0.00038356,9]
[355469155,1741191042435,-500.0,0.00038356,9]
[355469156,1741191042444,-504.22274774,0.00038356,9]
[355469157,1741191042454,-698.89,0.00038356,9]
[355469158,1741191042464,-506.18491053,0.00038356,9]
[355469159,1741191042474,-503.01654197,0.00038356,9]
[355469160,1741191042483,-507.03957689,0.00038356,9]
[355469161,1741191042497,-541.03,0.00038356,9]
[355469162,1741191042508,-500.0,0.00038356,9]
[355469163,1741191042517,-500.0,0.00038356,9]
[355469164,1741191042527,-500.0,0.00038356,9]
[355469165,1741191042536,-507.4264689,0.00038356,9]
[355469166,1741191042546,-500.0,0.00038356,9]
[355469167,1741191042556,-500.0,0.00038356,9]
[355469168,1741191042565,-500.0,0.00038356,9]
[355469169,1741191042575,-3498.42,0.00038356,9]
[355469170,1741191042585,-500.0,0.00038356,9]
[355469171,1741191042595,-500.0,0.00038356,9]
[355469172,1741191042606,-500.0,0.00038356,9]
[355469173,1741191042615,-500.0,0.00038356,9]
[355469174,1741191042626,-500.0,0.00038356,9]
[355469175,1741191042635,-500.0,0.00038356,9]
[355469176,1741191042645,-500.0,0.00038356,9]
[355469177,1741191042654,-500.0,0.00038356,9]
[355469178,1741191042664,-503.75157737,0.00038356,9]
[355469179,1741191042674,-752.37,0.00038356,9]
[355469180,1741191042683,-500.0,0.00038356,9]
[355469181,1741191042693,-500.0,0.00038356,9]
[355469182,1741191042702,-500.0,0.00038356,9]
[355469183,1741191042711,-500.0,0.00038356,9]
[355469184,1741191042721,-501.545832,0.00038356,9]
[355469185,1741191042733,-500.0,0.00038356,9]
[355469186,1741191042746,-502.93615998,0.00038356,9]
[355469187,1741191042755,-501.12121025,0.00038356,9]
[355469188,1741191042764,-500.0,0.00038356,9]
[355469189,1741191042773,-1568.01,0.00038356,9]
[355469190,1741191042782,-500.0,0.00038356,9]
[355469191,1741191042792,-265.57956178,0.00038356,9]
[355469193,1741191042801,-501.28844418,0.00038356,9]
[355469195,1741191042811,-506.14365771,0.00038356,9]
[355469196,1741191042821,-3988.87,0.00038356,9]
[355469197,1741191042830,-500.0,0.00038356,9]
[355469198,1741191042840,-500.0,0.00038356,9]
[355469199,1741191042850,-505.21643994,0.00038356,9]
[355469200,1741191042861,-500.0,0.00038356,9]
[355469201,1741191042870,-500.0,0.00038356,9]
[355469202,1741191042879,-500.0,0.00038356,9]
[355469203,1741191042889,-500.0,0.00038356,9]
[355469204,1741191042898,-500.0,0.00038356,9]
[355469205,1741191042908,-609.05,0.00038356,9]
[355469206,1741191042918,-754.93,0.00038356,9]
[355469207,1741191042927,-500.0,0.00038356,9]
[355469208,1741191042937,-500.0,0.00038356,9]
[355469209,1741191042946,-500.0,0.00038356,9]
[355469211,1741191042956,-512.69423941,0.00038356,9]
[355469213,1741191042966,-500.0,0.00038356,9]
[355469215,1741191042976,-515.84745946,0.00038356,9]
[355469216,1741191042986,-506.78901514,0.00038356,9]
[355469217,1741191042998,-1274.01,0.00038356,9]
[355469219,1741191043007,-514.66769353,0.00038356,9]
[355469221,1741191043017,-500.0,0.00038356,9]
[355469223,1741191043026,-500.0,0.00038356,9]
[355469225,1741191043036,-504.65735634,0.00038356,9]
[355469227,1741191043046,-500.0,0.00038356,9]
[355469229,1741191043055,-500.0,0.00038356,9]
[355469230,1741191043065,-13708.71,0.00038356,9]
[355469232,1741191043074,-500.0,0.00038356,9]
[355469233,1741191043084,-500.0,0.00038356,9]
[355469234,1741191043094,-500.0,0.00038356,9]
[355469235,1741191043104,-503.98648837,0.00038356,9]
[355469236,1741191043114,-509.95753261,0.00038356,9]
[355469237,1741191043124,-502.04827598,0.00038356,9]
[355469238,1741191043134,-500.0,0.00038356,9]
[355469239,1741191043144,-908.37,0.00038356,9]
[355469240,1741191043154,-1736.82,0.00038356,9]